[Event "*** Titled Tuesday Blitz"]
[Site "Chess.com"]
[Date "2021.04.27"]
[Round "3"]
[White "anon569"]
[Black "Keures"]
[Result "1-0"]
[WhiteElo "2225"]
[BlackElo "2356"]
[TimeControl "180+1"]
[EndTime "10:29:25 PDT"]
[Termination "anon569 won on time"]

1. e4 {[%clk 0:03:00.9]} 1... e6 {[%clk 0:02:59.9]} 2. Nf3 {[%clk 0:02:59.5]}
2... d5 {[%clk 0:02:58.1]} 3. Nc3 {[%clk 0:02:59.7]} 3... Nf6 {[%clk 0:02:57.7]}
4. e5 {[%clk 0:02:59.7]} 4... Ne4 {[%clk 0:02:56.3]} 5. Ne2 {[%clk 0:02:53.6]}
5... f6 {[%clk 0:02:53.2]} 6. d3 {[%clk 0:02:42.9]} 6... Nc5 {[%clk 0:02:53.1]}
7. Ng3 {[%clk 0:02:17.8]} 7... f5 {[%clk 0:02:42.8]} 8. Be2 {[%clk 0:01:52.2]}
8... Be7 {[%clk 0:02:41.5]} 9. Nh5 {[%clk 0:01:34.9]} 9... O-O {[%clk
0:02:39.2]} 10. h4 {[%clk 0:01:34.3]} 10... Ncd7 {[%clk 0:02:25]} 11. Nf4 {[%clk
0:01:29.4]} 11... Nb6 {[%clk 0:02:20.6]} 12. d4 {[%clk 0:01:14.7]} 12... c5
{[%clk 0:02:17]} 13. Kf1 {[%clk 0:01:06.3]} 13... Nc6 {[%clk 0:02:15.5]} 14. c3
{[%clk 0:01:03.5]} 14... Bd7 {[%clk 0:02:12.3]} 15. g3 {[%clk 0:01:02.1]} 15...
g6 {[%clk 0:02:08.9]} 16. Kg2 {[%clk 0:01:01.1]} 16... Rc8 {[%clk 0:01:55.1]}
17. dxc5 {[%clk 0:00:31.9]} 17... Bxc5 {[%clk 0:01:54.7]} 18. b4 {[%clk
0:00:31.8]} 18... Be7 {[%clk 0:01:51.7]} 19. b5 {[%clk 0:00:32.4]} 19... Na5
{[%clk 0:01:48.3]} 20. Nd4 {[%clk 0:00:32.5]} 20... Rf7 {[%clk 0:01:19.4]} 21.
Nfxe6 {[%clk 0:00:28.8]} 21... Bxe6 {[%clk 0:01:19.8]} 22. Nxe6 {[%clk
0:00:29.3]} 22... Qe8 {[%clk 0:01:07.1]} 23. Nd4 {[%clk 0:00:29]} 23... Nac4
{[%clk 0:01:03.1]} 24. Bf4 {[%clk 0:00:21.7]} 24... Bc5 {[%clk 0:01:00.5]} 25.
Bf3 {[%clk 0:00:15.1]} 25... Nxe5 {[%clk 0:00:58]} 26. Re1 {[%clk 0:00:10.4]}
26... Bd6 {[%clk 0:00:57.7]} 27. a4 {[%clk 0:00:08.6]} 27... Rxc3 {[%clk
0:00:45.9]} 28. a5 {[%clk 0:00:08.6]} 28... Nbd7 {[%clk 0:00:41.9]} 29. Bxd5
{[%clk 0:00:08.5]} 29... Kg7 {[%clk 0:00:38.9]} 30. Bxb7 {[%clk 0:00:05.9]}
30... Qb8 {[%clk 0:00:36]} 31. Bd5 {[%clk 0:00:06]} 31... Rd3 {[%clk 0:00:30.9]}
32. Qe2 {[%clk 0:00:01.7]} 32... Rxd4 {[%clk 0:00:30.3]} 33. Bxf7 {[%clk
0:00:02.3]} 33... Kxf7 {[%clk 0:00:27.8]} 34. Rad1 {[%clk 0:00:03]} 34... Re4
{[%clk 0:00:27.4]} 35. Qc2 {[%clk 0:00:02.6]} 35... Rxe1 {[%clk 0:00:25.8]} 36.
Rxe1 {[%clk 0:00:03.1]} 36... Qxb5 {[%clk 0:00:23]} 37. Qa2+ {[%clk 0:00:02.2]}
37... Qc4 {[%clk 0:00:14.1]} 38. Qxc4+ {[%clk 0:00:01.6]} 38... Nxc4 {[%clk
0:00:15]} 39. Bxd6 {[%clk 0:00:01.8]} 39... Nxd6 {[%clk 0:00:15.9]} 40. Rd1
{[%clk 0:00:02.2]} 40... Ke6 {[%clk 0:00:16.4]} 41. Re1+ {[%clk 0:00:02.2]}
41... Kf6 {[%clk 0:00:16.5]} 42. Rd1 {[%clk 0:00:02.8]} 42... Ke7 {[%clk
0:00:17]} 43. Kf3 {[%clk 0:00:03.2]} 43... Nc4 {[%clk 0:00:15.9]} 44. Ke2 {[%clk
0:00:03.8]} 44... Nxa5 {[%clk 0:00:15.8]} 45. Ra1 {[%clk 0:00:04.4]} 45... Nc6
{[%clk 0:00:15.1]} 46. Ra6 {[%clk 0:00:04.9]} 46... Nde5 {[%clk 0:00:14.2]} 47.
Ra1 {[%clk 0:00:05.6]} 47... Ng4 {[%clk 0:00:12.7]} 48. f4 {[%clk 0:00:06]}
48... Nf6 {[%clk 0:00:10.6]} 49. Kd3 {[%clk 0:00:06.9]} 49... Ne4 {[%clk
0:00:10.9]} 50. Kc4 {[%clk 0:00:07.8]} 50... Kd6 {[%clk 0:00:10.9]} 51. Kb5
{[%clk 0:00:07.5]} 51... Nxg3 {[%clk 0:00:10.7]} 52. Ra6 {[%clk 0:00:07.7]}
52... Kd7 {[%clk 0:00:08.8]} 53. Rxc6 {[%clk 0:00:08.2]} 53... Ne2 {[%clk
0:00:08.9]} 54. Ra6 {[%clk 0:00:08]} 54... Nxf4 {[%clk 0:00:06]} 55. Rxa7+
{[%clk 0:00:08.4]} 55... Ke6 {[%clk 0:00:06.7]} 56. Rxh7 {[%clk 0:00:09]} 56...
Kf6 {[%clk 0:00:07.2]} 57. Kc4 {[%clk 0:00:09.6]} 57... g5 {[%clk 0:00:03.6]}
58. Rh6+ {[%clk 0:00:06.8]} 58... Kg7 {[%clk 0:00:02.1]} 59. hxg5 {[%clk
0:00:07.1]} 1-0

[Event "*** Titled Tuesday Blitz"]
[Site "Chess.com"]
[Date "2021.04.27"]
[Round "3"]
[White "AlexSuv"]
[Black "platy3"]
[Result "0-1"]
[WhiteElo "2562"]
[BlackElo "2847"]
[TimeControl "180+1"]
[EndTime "10:29:27 PDT"]
[Termination "platy3 won by resignation"]

1. d4 {[%clk 0:03:00.9]} 1... Nf6 {[%clk 0:02:57.6]} 2. c4 {[%clk 0:02:51.8]}
2... e6 {[%clk 0:02:57.2]} 3. Nc3 {[%clk 0:02:52.4]} 3... Bb4 {[%clk 0:02:54.9]}
4. e3 {[%clk 0:02:53]} 4... O-O {[%clk 0:02:54.6]} 5. Bd2 {[%clk 0:02:53.6]}
5... b6 {[%clk 0:02:54.2]} 6. Nf3 {[%clk 0:02:53]} 6... Bb7 {[%clk 0:02:54.8]}
7. Bd3 {[%clk 0:02:52.6]} 7... d6 {[%clk 0:02:53.5]} 8. b3 {[%clk 0:02:44.1]}
8... Nbd7 {[%clk 0:02:36.9]} 9. O-O {[%clk 0:02:43.6]} 9... e5 {[%clk
0:02:31.9]} 10. Ne1 {[%clk 0:02:28.2]} 10... Re8 {[%clk 0:02:26.2]} 11. Nc2
{[%clk 0:02:26.4]} 11... Bxc3 {[%clk 0:02:25.8]} 12. Bxc3 {[%clk 0:02:27.3]}
12... Nf8 {[%clk 0:02:24.6]} 13. d5 {[%clk 0:02:13.3]} 13... Ng6 {[%clk
0:02:21.9]} 14. f4 {[%clk 0:02:01.3]} 14... c6 {[%clk 0:01:53]} 15. dxc6 {[%clk
0:01:51.9]} 15... Bxc6 {[%clk 0:01:52.6]} 16. Qd2 {[%clk 0:00:36.9]} 16... Ne4
{[%clk 0:01:34.1]} 17. Bxe4 {[%clk 0:00:35.7]} 17... Bxe4 {[%clk 0:01:35]} 18.
Rad1 {[%clk 0:00:35.2]} 18... Qh4 {[%clk 0:01:34.3]} 19. Nb4 {[%clk 0:00:29.5]}
19... Rad8 {[%clk 0:01:27.9]} 20. Qf2 {[%clk 0:00:23.9]} 20... Qg4 {[%clk
0:01:24.3]} 21. h3 {[%clk 0:00:22.3]} 21... Qh5 {[%clk 0:01:12]} 22. Nd5 {[%clk
0:00:20.8]} 22... f6 {[%clk 0:00:59.4]} 23. Kh2 {[%clk 0:00:18.6]} 23... Nf8
{[%clk 0:00:52.3]} 24. g4 {[%clk 0:00:17.7]} 24... Qf7 {[%clk 0:00:51.9]} 25. g5
{[%clk 0:00:15]} 25... fxg5 {[%clk 0:00:48.9]} 26. fxg5 {[%clk 0:00:15.9]} 26...
Qxf2+ {[%clk 0:00:48.4]} 27. Rxf2 {[%clk 0:00:16.8]} 27... Ne6 {[%clk
0:00:48.9]} 28. h4 {[%clk 0:00:17.2]} 28... Nc5 {[%clk 0:00:32.3]} 29. Bb4
{[%clk 0:00:15.6]} 29... Bxd5 {[%clk 0:00:31.8]} 30. Rxd5 {[%clk 0:00:14.7]}
30... Ne4 {[%clk 0:00:31.9]} 31. Rf1 {[%clk 0:00:12.3]} 31... Re7 {[%clk
0:00:16.3]} 32. Kg2 {[%clk 0:00:12.1]} 32... Rf7 {[%clk 0:00:16.8]} 33. Rxf7
{[%clk 0:00:11.5]} 33... Kxf7 {[%clk 0:00:17.7]} 34. Kf3 {[%clk 0:00:12.2]}
34... Nc5 {[%clk 0:00:18.3]} 35. Bxc5 {[%clk 0:00:05.7]} 35... bxc5 {[%clk
0:00:19.2]} 36. Rd1 {[%clk 0:00:06]} 36... Ke6 {[%clk 0:00:19.5]} 37. Ke4 {[%clk
0:00:06.6]} 37... Rf8 {[%clk 0:00:20]} 38. Rd2 {[%clk 0:00:06.7]} 38... Rf1
{[%clk 0:00:19.4]} 39. Rh2 {[%clk 0:00:06.2]} 39... a5 {[%clk 0:00:16.5]} 40.
Kd3 {[%clk 0:00:06.4]} 40... Kf5 {[%clk 0:00:15.7]} 41. Rg2 {[%clk 0:00:03.9]}
41... Rh1 {[%clk 0:00:09.6]} 42. Rf2+ {[%clk 0:00:03.5]} 42... Ke6 {[%clk
0:00:10.2]} 43. Rf8 {[%clk 0:00:03.6]} 43... Rxh4 {[%clk 0:00:09.2]} 44. Rg8
{[%clk 0:00:04.2]} 44... Kf7 {[%clk 0:00:07.7]} 45. Rd8 {[%clk 0:00:04.5]} 45...
e4+ {[%clk 0:00:06]} 46. Kc3 {[%clk 0:00:04.2]} 46... Ke6 {[%clk 0:00:05.6]} 47.
Rg8 {[%clk 0:00:03.6]} 47... h5 {[%clk 0:00:06.2]} 48. Rxg7 {[%clk 0:00:01.6]}
48... Rh3 {[%clk 0:00:06.8]} 49. Rg6+ {[%clk 0:00:02.2]} 49... Ke5 {[%clk
0:00:06.9]} 50. Kd2 {[%clk 0:00:03.1]} 50... Rh2+ {[%clk 0:00:07.4]} 51. Ke1
{[%clk 0:00:03.2]} 51... Rxa2 {[%clk 0:00:06.5]} 52. Rh6 {[%clk 0:00:03]} 52...
Rh2 {[%clk 0:00:06.6]} 53. Rh7 {[%clk 0:00:02.1]} 53... Kf5 {[%clk 0:00:06]} 54.
Rg7 {[%clk 0:00:02.5]} 54... h4 {[%clk 0:00:05.7]} 55. g6 {[%clk 0:00:03]} 55...
Rg2 {[%clk 0:00:06.1]} 56. Rh7 {[%clk 0:00:03]} 56... Kg4 {[%clk 0:00:04.1]} 57.
g7 {[%clk 0:00:03]} 57... Kh3 {[%clk 0:00:04.7]} 58. Kf1 {[%clk 0:00:02.8]}
58... Rg5 {[%clk 0:00:04.7]} 59. Kf2 {[%clk 0:00:03]} 59... Rg4 {[%clk 0:00:04]}
60. Kf1 {[%clk 0:00:03]} 60... Kg3 {[%clk 0:00:04.3]} 61. Ke2 {[%clk 0:00:02.6]}
61... h3 {[%clk 0:00:04.1]} 62. Kf1 {[%clk 0:00:02.2]} 62... h2 {[%clk
0:00:04.5]} 63. Ke2 {[%clk 0:00:02.8]} 63... Kg2 {[%clk 0:00:04.9]} 64. Rh4
{[%clk 0:00:01.1]} 64... Rxg7 {[%clk 0:00:04.3]} 65. Rxe4 {[%clk 0:00:01.1]}
65... h1=Q {[%clk 0:00:04.7]} 0-1

[Event "*** Titled Tuesday Blitz"]
[Site "Chess.com"]
[Date "2021.04.27"]
[Round "3"]
[White "Redbandit87"]
[Black "enriquetejedor"]
[Result "0-1"]
[WhiteElo "2389"]
[BlackElo "2603"]
[TimeControl "180+1"]
[EndTime "10:29:33 PDT"]
[Termination "enriquetejedor won by checkmate"]

1. d4 {[%clk 0:03:00.9]} 1... Nf6 {[%clk 0:02:44.2]} 2. Bf4 {[%clk 0:03:00.3]}
2... d5 {[%clk 0:02:39.8]} 3. e3 {[%clk 0:02:59.9]} 3... e6 {[%clk 0:02:32.3]}
4. Nf3 {[%clk 0:02:55.5]} 4... Bd6 {[%clk 0:02:32]} 5. Ne5 {[%clk 0:02:55.6]}
5... O-O {[%clk 0:02:24.2]} 6. Nd2 {[%clk 0:02:54.8]} 6... c5 {[%clk 0:02:17.2]}
7. c3 {[%clk 0:02:54.3]} 7... Qc7 {[%clk 0:02:17.3]} 8. Bd3 {[%clk 0:02:33.8]}
8... Nbd7 {[%clk 0:02:16.7]} 9. Ndf3 {[%clk 0:02:29.9]} 9... Ne4 {[%clk
0:01:43]} 10. Nxd7 {[%clk 0:02:13.9]} 10... Bxd7 {[%clk 0:01:40.2]} 11. Bxe4
{[%clk 0:02:08.3]} 11... Bxf4 {[%clk 0:01:36.8]} 12. Bxh7+ {[%clk 0:01:58.3]}
12... Kxh7 {[%clk 0:01:33.6]} 13. exf4 {[%clk 0:01:58.2]} 13... Qxf4 {[%clk
0:01:34.5]} 14. O-O {[%clk 0:01:13.7]} 14... cxd4 {[%clk 0:01:33.1]} 15. Nxd4
{[%clk 0:01:09.5]} 15... e5 {[%clk 0:01:25.7]} 16. Ne2 {[%clk 0:01:01.1]} 16...
Qc4 {[%clk 0:01:25.4]} 17. Ng3 {[%clk 0:00:56]} 17... Kg8 {[%clk 0:01:21.4]} 18.
Re1 {[%clk 0:00:55.5]} 18... Rfe8 {[%clk 0:01:20.8]} 19. Qh5 {[%clk 0:00:54.1]}
19... f6 {[%clk 0:01:17.4]} 20. Nf5 {[%clk 0:00:42.2]} 20... Bxf5 {[%clk
0:01:15.5]} 21. Qxf5 {[%clk 0:00:43.1]} 21... Rad8 {[%clk 0:01:14.8]} 22. Re3
{[%clk 0:00:32.7]} 22... Qc8 {[%clk 0:01:14.1]} 23. Qg6 {[%clk 0:00:31.9]} 23...
Re7 {[%clk 0:01:02.2]} 24. Rg3 {[%clk 0:00:29.2]} 24... Qe6 {[%clk 0:00:58.6]}
25. Rh3 {[%clk 0:00:28.2]} 25... Qf7 {[%clk 0:00:54.1]} 26. Qh7+ {[%clk
0:00:25.3]} 26... Kf8 {[%clk 0:00:54.6]} 27. Qh8+ {[%clk 0:00:24.2]} 27... Qg8
{[%clk 0:00:54.9]} 28. Qh5 {[%clk 0:00:23.9]} 28... a6 {[%clk 0:00:50]} 29. Rd1
{[%clk 0:00:22.4]} 29... Qf7 {[%clk 0:00:49]} 30. Qh8+ {[%clk 0:00:21.4]} 30...
Qg8 {[%clk 0:00:49.4]} 31. Qh5 {[%clk 0:00:21.9]} 31... Red7 {[%clk 0:00:45.8]}
32. g4 {[%clk 0:00:19.5]} 32... Qf7 {[%clk 0:00:43.9]} 33. Qf5 {[%clk
0:00:16.8]} 33... g6 {[%clk 0:00:39.4]} 34. Qf3 {[%clk 0:00:14.5]} 34... Kg7
{[%clk 0:00:38.3]} 35. Rh4 {[%clk 0:00:13.4]} 35... Rh8 {[%clk 0:00:36.4]} 36.
Rxh8 {[%clk 0:00:13]} 36... Kxh8 {[%clk 0:00:37.3]} 37. g5 {[%clk 0:00:12.9]}
37... Kg7 {[%clk 0:00:31.6]} 38. gxf6+ {[%clk 0:00:12.8]} 38... Qxf6 {[%clk
0:00:32.5]} 39. Qxf6+ {[%clk 0:00:12.8]} 39... Kxf6 {[%clk 0:00:33.4]} 40. Kg2
{[%clk 0:00:13.4]} 40... b5 {[%clk 0:00:33.2]} 41. Kf3 {[%clk 0:00:13.6]} 41...
Ke6 {[%clk 0:00:33.1]} 42. Ke3 {[%clk 0:00:14]} 42... Rh7 {[%clk 0:00:32.7]} 43.
Rg1 {[%clk 0:00:13.8]} 43... Rh3+ {[%clk 0:00:31.5]} 44. Ke2 {[%clk 0:00:13.2]}
44... Kf5 {[%clk 0:00:29.5]} 45. Rg2 {[%clk 0:00:13.6]} 45... g5 {[%clk
0:00:29.8]} 46. Kd2 {[%clk 0:00:13.8]} 46... a5 {[%clk 0:00:29.5]} 47. Ke2
{[%clk 0:00:14.4]} 47... a4 {[%clk 0:00:29.2]} 48. a3 {[%clk 0:00:14.4]} 48...
g4 {[%clk 0:00:26.6]} 49. Kd2 {[%clk 0:00:14.5]} 49... Rh8 {[%clk 0:00:25.6]}
50. Ke2 {[%clk 0:00:14]} 50... Kf4 {[%clk 0:00:26.1]} 51. Kd2 {[%clk 0:00:14]}
51... Rh7 {[%clk 0:00:26.3]} 52. Ke2 {[%clk 0:00:14.2]} 52... Rh6 {[%clk
0:00:26.6]} 53. Ke1 {[%clk 0:00:14]} 53... d4 {[%clk 0:00:17.2]} 54. cxd4 {[%clk
0:00:13.8]} 54... exd4 {[%clk 0:00:18.1]} 55. Ke2 {[%clk 0:00:14.3]} 55... Rh3
{[%clk 0:00:13.4]} 56. Kd2 {[%clk 0:00:14.5]} 56... Rb3 {[%clk 0:00:13.3]} 57.
Kc2 {[%clk 0:00:14.5]} 57... Kf3 {[%clk 0:00:07.6]} 58. Rg3+ {[%clk 0:00:14.2]}
58... Ke2 {[%clk 0:00:07.8]} 59. Rxg4 {[%clk 0:00:10.1]} 59... d3+ {[%clk
0:00:07.3]} 60. Kb1 {[%clk 0:00:10.6]} 60... d2 {[%clk 0:00:04.8]} 61. Re4+
{[%clk 0:00:11.1]} 61... Kf1 {[%clk 0:00:01.7]} 62. Rd4 {[%clk 0:00:10.8]} 62...
Ke2 {[%clk 0:00:01.9]} 63. Re4+ {[%clk 0:00:11]} 63... Kxf2 {[%clk 0:00:02.4]}
64. Kc2 {[%clk 0:00:10.4]} 64... Rxb2+ {[%clk 0:00:02.5]} 65. Kd1 {[%clk
0:00:10.8]} 65... Ra2 {[%clk 0:00:02.8]} 66. Rd4 {[%clk 0:00:10.6]} 66... Ke3
{[%clk 0:00:03.2]} 67. Rxd2 {[%clk 0:00:09.4]} 67... Rxd2+ {[%clk 0:00:03.5]}
68. Kc1 {[%clk 0:00:09.8]} 68... Rxh2 {[%clk 0:00:03.8]} 69. Kb1 {[%clk
0:00:10.7]} 69... Kd3 {[%clk 0:00:04.1]} 70. Ka1 {[%clk 0:00:11.6]} 70... Kc3
{[%clk 0:00:04.7]} 71. Kb1 {[%clk 0:00:12.5]} 71... Rg2 {[%clk 0:00:04.9]} 72.
Ka1 {[%clk 0:00:13.4]} 72... Kb3 {[%clk 0:00:04.8]} 73. Kb1 {[%clk 0:00:14.3]}
73... Rg1# {[%clk 0:00:05.7]} 0-1

[Event "*** Titled Tuesday Blitz"]
[Site "Chess.com"]
[Date "2021.04.27"]
[Round "3"]
[White "Abund"]
[Black "Zq1"]
[Result "1/2-1/2"]
[WhiteElo "2745"]
[BlackElo "2533"]
[TimeControl "180+1"]
[EndTime "10:29:42 PDT"]
[Termination "Game drawn by stalemate"]

1. e4 {[%clk 0:03:00.9]} 1... e5 {[%clk 0:02:59.3]} 2. Nf3 {[%clk 0:03:00.2]}
2... Nc6 {[%clk 0:02:59.5]} 3. Bc4 {[%clk 0:03:00.3]} 3... Bc5 {[%clk
0:02:59.3]} 4. c3 {[%clk 0:03:00.1]} 4... Nf6 {[%clk 0:02:58]} 5. d4 {[%clk
0:03:00.7]} 5... exd4 {[%clk 0:02:57.8]} 6. e5 {[%clk 0:03:01.6]} 6... d5 {[%clk
0:02:56.1]} 7. Bb5 {[%clk 0:03:01.9]} 7... Ne4 {[%clk 0:02:55.7]} 8. cxd4 {[%clk
0:03:02.2]} 8... Bb6 {[%clk 0:02:55.9]} 9. Nc3 {[%clk 0:03:02.3]} 9... O-O
{[%clk 0:02:51.6]} 10. Be3 {[%clk 0:03:02.4]} 10... f6 {[%clk 0:02:45.2]} 11.
Qb3 {[%clk 0:02:57.4]} 11... Nxc3 {[%clk 0:02:40.3]} 12. Bxc6 {[%clk 0:02:57.2]}
12... bxc6 {[%clk 0:02:38.9]} 13. Qxc3 {[%clk 0:02:57.6]} 13... Bg4 {[%clk
0:02:36.4]} 14. Qxc6 {[%clk 0:02:34.7]} 14... Bxf3 {[%clk 0:02:32]} 15. gxf3
{[%clk 0:02:34.3]} 15... fxe5 {[%clk 0:02:31.8]} 16. Qe6+ {[%clk 0:02:29.9]}
16... Kh8 {[%clk 0:02:28.9]} 17. Qxe5 {[%clk 0:02:30.3]} 17... Re8 {[%clk
0:02:03.7]} 18. Qf4 {[%clk 0:02:20.5]} 18... Rf8 {[%clk 0:01:57.3]} 19. Qg4
{[%clk 0:02:15.1]} 19... Qf6 {[%clk 0:01:56.6]} 20. Rg1 {[%clk 0:02:09.7]} 20...
Rae8 {[%clk 0:01:51.4]} 21. O-O-O {[%clk 0:02:06.8]} 21... Rf7 {[%clk
0:01:49.5]} 22. Rg3 {[%clk 0:02:02.8]} 22... Ref8 {[%clk 0:01:49.3]} 23. Rd3
{[%clk 0:01:48.3]} 23... Qc6+ {[%clk 0:01:47.7]} 24. Rc3 {[%clk 0:01:46.2]}
24... Qb5 {[%clk 0:01:47.6]} 25. Rg1 {[%clk 0:01:38.9]} 25... Qe2 {[%clk
0:01:44.2]} 26. f4 {[%clk 0:01:34.2]} 26... Qxg4 {[%clk 0:01:39.5]} 27. Rxg4
{[%clk 0:01:34]} 27... Rf5 {[%clk 0:01:39.6]} 28. Rg5 {[%clk 0:01:30]} 28... h6
{[%clk 0:01:36.1]} 29. Rg6 {[%clk 0:01:30]} 29... Kh7 {[%clk 0:01:34.6]} 30.
Rcc6 {[%clk 0:01:29.1]} 30... Rh5 {[%clk 0:01:31.6]} 31. Rg2 {[%clk 0:01:28.7]}
31... Rhf5 {[%clk 0:01:27.1]} 32. Kc2 {[%clk 0:01:24.9]} 32... R8f6 {[%clk
0:01:26.5]} 33. Rc3 {[%clk 0:01:18]} 33... Rg6 {[%clk 0:01:25.3]} 34. Rxg6
{[%clk 0:01:03.5]} 34... Kxg6 {[%clk 0:01:24.9]} 35. b4 {[%clk 0:01:01.2]} 35...
Rh5 {[%clk 0:01:15.6]} 36. a4 {[%clk 0:00:53.3]} 36... a5 {[%clk 0:01:15.6]} 37.
bxa5 {[%clk 0:00:53.3]} 37... Bxa5 {[%clk 0:01:15.8]} 38. Rc6+ {[%clk
0:00:53.4]} 38... Kf7 {[%clk 0:01:12.7]} 39. Ra6 {[%clk 0:00:51.3]} 39... Be1
{[%clk 0:01:08.7]} 40. Ra7 {[%clk 0:00:49.3]} 40... Bxf2 {[%clk 0:01:06.1]} 41.
Rxc7+ {[%clk 0:00:42.3]} 41... Ke6 {[%clk 0:01:04.5]} 42. Bxf2 {[%clk
0:00:33.2]} 42... Rxh2 {[%clk 0:01:04.2]} 43. Rxg7 {[%clk 0:00:33.6]} 43...
Rxf2+ {[%clk 0:01:04.2]} 44. Kd3 {[%clk 0:00:27.9]} 44... Rf3+ {[%clk
0:01:03.7]} 45. Kc2 {[%clk 0:00:20.7]} 45... Ra3 {[%clk 0:00:58]} 46. Rg6+
{[%clk 0:00:13.5]} 46... Kf5 {[%clk 0:00:57.2]} 47. Rxh6 {[%clk 0:00:12.2]}
47... Ke4 {[%clk 0:00:50.1]} 48. Re6+ {[%clk 0:00:08.8]} 48... Kxd4 {[%clk
0:00:49.4]} 49. f5 {[%clk 0:00:08.9]} 49... Rxa4 {[%clk 0:00:49.1]} 50. f6
{[%clk 0:00:08.8]} 50... Ra2+ {[%clk 0:00:49.1]} 51. Kd1 {[%clk 0:00:07.5]}
51... Rf2 {[%clk 0:00:48.9]} 52. Ke1 {[%clk 0:00:07.3]} 52... Rf5 {[%clk
0:00:46.9]} 53. Ke2 {[%clk 0:00:07.3]} 53... Kc5 {[%clk 0:00:46.2]} 54. Kd3
{[%clk 0:00:06.3]} 54... Rf3+ {[%clk 0:00:45.8]} 55. Ke2 {[%clk 0:00:06.2]}
55... Rf5 {[%clk 0:00:45.2]} 56. Ke3 {[%clk 0:00:06.4]} 56... Rf1 {[%clk
0:00:44.8]} 57. Kd2 {[%clk 0:00:06.1]} 57... d4 {[%clk 0:00:42.5]} 58. Ra6
{[%clk 0:00:03.8]} 58... Kc4 {[%clk 0:00:40.1]} 59. Rc6+ {[%clk 0:00:03.7]}
59... Kd5 {[%clk 0:00:40]} 60. Ra6 {[%clk 0:00:03.9]} 60... Ke5 {[%clk
0:00:40.1]} 61. Rb6 {[%clk 0:00:04]} 61... Rf2+ {[%clk 0:00:39.7]} 62. Kd3
{[%clk 0:00:03.8]} 62... Rf3+ {[%clk 0:00:39.9]} 63. Kd2 {[%clk 0:00:04.1]}
63... Ke4 {[%clk 0:00:39.5]} 64. Re6+ {[%clk 0:00:03.8]} 64... Kf5 {[%clk
0:00:34.6]} 65. Ra6 {[%clk 0:00:04.7]} 65... Ke5 {[%clk 0:00:34.2]} 66. Rb6
{[%clk 0:00:04.7]} 66... Kd5 {[%clk 0:00:30.7]} 67. Ra6 {[%clk 0:00:04.7]} 67...
Rf4 {[%clk 0:00:30.7]} 68. Ra5+ {[%clk 0:00:04.6]} 68... Kc4 {[%clk 0:00:29.7]}
69. Ra6 {[%clk 0:00:05.5]} 69... Kd5 {[%clk 0:00:29.4]} 70. Kd3 {[%clk
0:00:05.6]} 70... Rf3+ {[%clk 0:00:28.7]} 71. Ke2 {[%clk 0:00:05.7]} 71... Rf4
{[%clk 0:00:26.8]} 72. Kd2 {[%clk 0:00:06]} 72... Ke5 {[%clk 0:00:25.9]} 73. Kd3
{[%clk 0:00:06.2]} 73... Rf3+ {[%clk 0:00:26]} 74. Ke2 {[%clk 0:00:06.5]} 74...
Rxf6 {[%clk 0:00:25.9]} 75. Rxf6 {[%clk 0:00:06.1]} 75... Kxf6 {[%clk
0:00:26.5]} 76. Kd2 {[%clk 0:00:04.5]} 76... Ke5 {[%clk 0:00:27]} 77. Kd3 {[%clk
0:00:04.7]} 77... Kd5 {[%clk 0:00:27.5]} 78. Kd2 {[%clk 0:00:05]} 78... Ke4
{[%clk 0:00:28.1]} 79. Ke2 {[%clk 0:00:05.3]} 79... d3+ {[%clk 0:00:28.7]} 80.
Kd2 {[%clk 0:00:05.7]} 80... Kd4 {[%clk 0:00:29.3]} 81. Kd1 {[%clk 0:00:06.2]}
81... Ke3 {[%clk 0:00:29.8]} 82. Ke1 {[%clk 0:00:06.4]} 82... d2+ {[%clk
0:00:30.3]} 83. Kd1 {[%clk 0:00:06.7]} 83... Kd3 {[%clk 0:00:31]} 1/2-1/2